bitfinex/quotes_BTCUSD_20220307
["timestamp","ask_amount","ask_price","bid_price","bid_amount"]
[1646681837547,0.05,37311.0,37304.0,0.067034]
[1646681837745,0.3,37310.0,37304.0,0.067034]
[1646681837947,0.3,37312.0,37301.0,0.134064]
[1646681838148,0.067045,37309.0,37296.0,0.05]
[1646681838348,0.0134,37315.0,37301.0,0.25113534]
[1646681838549,3.0209028,37324.0,37302.0,0.295]
[1646681838550,2.6187096,37324.0,37302.0,0.295]
[1646681838747,0.05,37324.0,37303.0,1.8018025]
[1646681839048,0.2499999,37342.0,37301.0,0.25113534]
[1646681839049,0.2313,37330.0,37306.0,0.9529]
[1646681839255,0.2377,37334.0,37314.0,0.15]
[1646681839256,0.066999,37331.0,37314.0,0.15]
[1646681839446,0.29671633,37328.0,37324.0,0.066996]
[1646681839849,0.29671633,37328.0,37322.0,0.133991]
[1646681840048,0.29671633,37328.0,37320.0,0.0447]
[1646681840488,0.40858,37327.0,37320.0,0.0447]
[1646681840690,0.40858,37327.0,37311.0,0.0447]
[1646681840691,0.40858,37325.0,37311.0,0.0447]
[1646681840888,0.27941589,37315.0,37302.0,0.05]
[1646681841090,0.29741118,37327.0,37303.0,0.0447]
[1646681841091,0.1968,37325.0,37303.0,0.0447]
[1646681841286,0.3,37324.0,37305.0,0.0978]
[1646681841489,0.1968,37325.0,37306.0,0.3447]
[1646681841685,0.1968,37325.0,37307.0,0.067027]
[1646681841686,0.067011,37323.0,37307.0,0.067027]
[1646681841893,0.63584537,37322.0,37307.0,0.067027]
[1646681842089,0.63584537,37322.0,37305.0,0.0978]
[1646681842090,0.07314982,37309.0,37305.0,0.0978]
[1646681842292,0.07314982,37309.0,37302.0,0.15]
[1646681842293,0.5,37307.0,37302.0,0.15]
[1646681842490,0.40858,37306.0,37302.0,0.1]
[1646681842685,0.05,37306.0,37289.0,0.22773405]
[1646681842889,0.29326154,37290.0,37289.0,0.22773405]
[1646681843088,0.24291396,37290.0,37289.0,0.22773405]
[1646681843886,0.067069,37292.0,37289.0,0.22773405]
[1646681844137,0.06705767,37300.0,37289.0,0.22773405]
[1646681844336,0.06705767,37300.0,37289.0,0.42869613]
[1646681844543,0.134122,37297.0,37289.0,0.22773405]
[1646681844737,0.77610461,37296.0,37289.0,0.22773405]
[1646681844941,0.067054,37298.0,37292.0,0.408626]
[1646681845137,0.067054,37298.0,37291.0,0.25270019]
[1646681845138,0.201174,37311.0,37294.0,0.408626]
[1646681845336,0.201174,37311.0,37295.0,0.3]
[1646681845537,0.06704239,37305.0,37296.0,0.408626]
[1646681845736,0.06704239,37305.0,37291.0,0.25270019]
[1646681845937,0.06704239,37305.0,37291.0,0.35260019]
[1646681846139,0.408626,37304.0,37291.0,0.0999]
[1646681846336,0.13412156,37302.0,37291.0,0.0999]
[1646681846538,0.21257788,37298.0,37291.0,0.0999]
[1646681846734,0.134121,37298.0,37291.0,0.0999]
[1646681846940,0.0134,37304.0,37291.0,0.0999]
[1646681846941,0.0134,37304.0,37293.0,0.067053]
[1646681847140,0.067043,37304.0,37293.0,0.067053]
[1646681847783,0.24140398,37303.0,37297.0,0.408626]
[1646681848283,0.067043,37304.0,37296.0,0.217046]
[1646681848483,0.067043,37304.0,37297.0,0.408626]
[1646681848685,0.067043,37304.0,37296.0,0.067046]
[1646681848885,0.067043,37304.0,37297.0,0.408626]
[1646681849285,0.067043,37304.0,37298.0,0.408626]
[1646681849487,0.067043,37304.0,37291.0,0.3999]
[1646681849690,0.067043,37304.0,37292.0,0.408626]
[1646681849887,0.067043,37304.0,37294.0,0.134086]
[1646681850086,0.31128191,37300.0,37295.0,0.408626]
[1646681850290,0.17533919,37299.0,37295.0,0.408626]
[1646681850493,0.17533919,37299.0,37291.0,0.0999]
[1646681850494,0.408626,37298.0,37291.0,0.0999]
[1646681850893,0.60981088,37298.0,37291.0,0.0999]
[1646681851195,0.60981088,37298.0,37289.0,0.22773405]
[1646681851196,0.78892488,37298.0,37289.0,0.22773405]
[1646681851389,0.48394217,37290.0,37289.0,0.22773405]
[1646681851653,0.89256817,37290.0,37289.0,0.22773405]
[1646681852058,0.408626,37289.0,37277.0,0.75274702]
[1646681852259,0.408626,37289.0,37277.0,0.16315643]
[1646681852260,0.134197,37287.0,37277.0,0.16315643]
[1646681852453,0.508626,37289.0,37267.0,0.56434128]
[1646681852454,0.044923,37284.0,37267.0,0.56434128]
[1646681852654,0.044923,37284.0,37267.0,0.187834]
[1646681852655,0.24338798,37271.0,37267.0,0.187834]
[1646681852855,0.3,37270.0,37267.0,0.187834]
[1646681853059,0.13421545,37273.0,37270.0,0.12951309]
[1646681853355,0.01341,37290.0,37271.0,0.408685]
[1646681853553,0.14940978,37292.0,37271.0,0.408685]
[1646681853554,0.06709036,37282.0,37271.0,0.295]
[1646681853763,0.11291,37292.0,37270.0,0.12951309]
[1646681853764,0.3351935,37291.0,37270.0,0.12951309]
[1646681853956,0.12309597,37291.0,37271.0,0.3]
[1646681854255,0.134181,37288.0,37275.0,0.408685]
[1646681854454,0.3,37287.0,37270.0,0.12951309]
[1646681854958,0.067089,37285.0,37271.0,0.408685]
[1646681855157,0.46321887,37285.0,37271.0,0.59648518]
[1646681855393,0.13417148,37286.0,37275.0,0.408685]
[1646681855597,0.3,37291.0,37276.0,0.067079]
[1646681855794,0.01341,37298.0,37276.0,0.067079]
[1646681855795,0.01341,37294.0,37277.0,0.408685]
[1646681855994,0.06706743,37295.0,37277.0,0.408685]
[1646681856293,0.06706743,37295.0,37279.0,0.408685]
[1646681856294,0.3,37294.0,37279.0,0.408685]
[1646681856492,0.3,37294.0,37284.0,0.286226]
[1646681856691,0.3,37297.0,37285.0,0.408685]
[1646681857091,0.3,37297.0,37286.0,0.408685]
[1646681857092,0.06706821,37295.0,37286.0,0.408685]
[1646681857291,0.067067,37297.0,37286.0,0.408685]
[1646681857292,0.3,37296.0,37286.0,0.408685]
[1646681857495,0.23944588,37288.0,37283.0,0.134122]
[1646681857693,0.3,37296.0,37283.0,0.134122]
[1646681857694,0.3,37296.0,37286.0,0.13986394]
[1646681857892,0.01341,37304.0,37286.0,0.067062]
[1646681858092,0.408685,37301.0,37286.0,0.067062]
[1646681858292,0.408685,37299.0,37281.0,0.23993613]
[1646681858492,0.3,37298.0,37279.0,0.05]
[1646681858690,0.3,37298.0,37277.0,0.1134]
[1646681858691,0.408685,37297.0,37277.0,0.1134]
[1646681858891,0.408685,37297.0,37282.0,0.06023222]
[1646681858892,0.3,37296.0,37282.0,0.06023222]
[1646681859142,0.0134,37302.0,37291.0,0.27212788]
[1646681859439,0.23419781,37305.0,37292.0,0.3447]
[1646681859440,0.00174908,37305.0,37292.0,0.3447]
[1646681859645,0.00174908,37305.0,37293.0,0.17629]
[1646681859841,0.00174908,37305.0,37299.0,0.02629]
[1646681860047,0.00174908,37305.0,37304.0,0.20792508]
[1646681860048,9.08e-06,37305.0,37304.0,0.20792508]
[1646681860243,0.3,37321.0,37304.0,0.2589]
[1646681860441,0.28943995,37309.0,37304.0,0.13261]
[1646681860648,0.0134,37327.0,37305.0,0.408685]
[1646681860948,0.3134,37327.0,37316.0,0.0999]
[1646681861146,0.201091,37329.0,37316.0,0.07245]
[1646681861342,0.13403559,37325.0,37316.0,0.07245]
[1646681861546,0.01339,37328.0,37317.0,0.753385]
[1646681861743,0.21761321,37341.0,37328.0,0.01339]
[1646681861945,0.1198541,37346.0,37329.0,0.520369]
[1646681861946,0.01339,37345.0,37329.0,0.520369]
[1646681862143,0.408685,37344.0,37338.0,0.28161102]
[1646681862343,0.408685,37344.0,37338.0,0.44336102]
[1646681862549,0.408685,37344.0,37338.0,0.34336102]
[1646681862790,0.408685,37344.0,37338.0,0.06175]
[1646681862990,0.18621292,37343.0,37332.0,0.0447]
[1646681863186,0.24862356,37352.0,37333.0,0.3]
[1646681863187,0.04764456,37352.0,37333.0,0.3]
[1646681863384,0.09990978,37357.0,37333.0,0.3]
[1646681863385,0.09990978,37357.0,37334.0,0.408685]
[1646681863586,0.62731377,37370.0,37334.0,0.408685]
[1646681863587,0.00059275,37352.0,37336.0,0.15]
[1646681863785,0.01337,37369.0,37336.0,0.15]
[1646681863786,0.20753021,37374.0,37350.0,0.15]
[1646681863988,0.10598,37374.0,37358.0,0.0261]
[1646681864184,0.10598,37374.0,37362.0,0.04159]
[1646681864383,0.708685,37373.0,37363.0,0.0447]
[1646681864784,0.708685,37373.0,37356.0,0.5735]
[1646681864785,0.30543986,37367.0,37356.0,0.5735]
[1646681864984,0.708685,37373.0,37356.0,0.5282]
[1646681864985,0.408685,37366.0,37356.0,0.5282]
[1646681865189,0.4,37374.0,37365.0,0.06290117]
[1646681865387,0.4,37374.0,37366.0,0.453385]
[1646681865584,0.4,37374.0,37368.0,0.408685]
[1646681865784,0.4,37374.0,37370.0,0.408685]
[1646681865985,0.0091197,37389.0,37372.0,0.34722626]
[1646681866186,0.408685,37388.0,37373.0,0.0447]
[1646681866385,0.408685,37388.0,37373.0,0.13773]
[1646681867349,0.408685,37388.0,37373.0,0.0447]
[1646681867350,0.1619081,37374.0,37373.0,0.0447]
[1646681867546,0.03703698,37372.0,37367.0,0.22881866]
[1646681867751,0.01337,37387.0,37368.0,0.3447]
[1646681867949,0.1998,37388.0,37369.0,0.422045]
[1646681868184,0.1998,37388.0,37371.0,0.066892]
[1646681868350,0.01336,37402.0,37375.0,1.65]
[1646681868351,0.13378,37402.0,37375.0,1.65]
[1646681868552,0.2499999,37413.0,37375.0,1.65]
[1646681868553,0.01336,37409.0,37396.0,0.27875596]
[1646681868750,0.17277985,37408.0,37397.0,0.291495]
[1646681868947,0.2499999,37413.0,37397.0,0.304855]
[1646681869148,0.2499999,37413.0,37397.0,0.0447]
[1646681869149,3.96822373,37400.0,37397.0,0.0447]
[1646681869348,3.96322373,37400.0,37397.0,0.0447]
[1646681869753,3.96322373,37400.0,37387.0,0.05]
[1646681869754,0.25343424,37388.0,37387.0,0.05]
[1646681869950,0.25343424,37388.0,37380.0,1.2248]
[1646681869951,0.408359,37387.0,37383.0,0.05]
[1646681870150,0.59843054,37387.0,37383.0,0.05]
[1646681870612,0.01336,37390.0,37383.0,0.05]
[1646681870907,0.00836,37390.0,37383.0,0.05]
[1646681871110,0.0447,37391.0,37384.0,0.250142]
[1646681871509,0.408359,37384.0,37383.0,0.08718]
[1646681871705,0.408359,37384.0,37383.0,0.05]
[1646681872610,0.408359,37384.0,37380.0,0.05]
[1646681872611,0.458359,37384.0,37380.0,0.05]
[1646681872809,0.22290245,37383.0,37380.0,0.05]
[1646681873012,0.408359,37382.0,37380.0,0.05]
[1646681873213,0.00307874,37388.0,37380.0,0.05]
[1646681873609,0.00307874,37388.0,37381.0,0.250165]
[1646681874059,0.19157734,37383.0,37380.0,0.05]
[1646681874262,0.708359,37382.0,37380.0,0.05]
[1646681874457,0.408359,37382.0,37380.0,0.05]
[1646681875057,0.73635736,37382.0,37380.0,0.05]
[1646681875860,0.73635736,37382.0,37371.0,0.05]
[1646681876061,0.366932,37381.0,37371.0,0.05]
[1646681876361,0.366932,37381.0,37374.0,0.20501433]
[1646681876362,0.458359,37380.0,37374.0,0.20501433]
[1646681876560,0.458359,37380.0,37362.0,0.53876096]
[1646681876561,0.27996248,37372.0,37362.0,0.29483764]
[1646681876762,0.308359,37371.0,37362.0,0.29483764]
[1646681877159,0.366942,37375.0,37362.0,0.29483764]
[1646681877363,0.05,37375.0,37363.0,0.350333]
[1646681877562,0.05,37375.0,37363.0,0.363703]
[1646681877788,0.05,37376.0,37370.0,0.24480394]
[1646681878086,0.20292438,37384.0,37370.0,0.24480394]
[1646681878087,0.05,37380.0,37371.0,0.350245]
[1646681878289,0.00212938,37384.0,37371.0,0.350245]
[1646681878490,0.178512,37391.0,37373.0,0.350214]
[1646681878491,0.0447,37391.0,37373.0,0.350214]
[1646681878688,0.0447,37391.0,37379.0,0.04175543]
[1646681878885,0.0447,37391.0,37375.0,0.350191]
[1646681878886,0.0447,37391.0,37386.0,0.28171269]
[1646681879187,0.0447,37391.0,37387.0,0.350064]
[1646681880388,0.0447,37391.0,37387.0,0.41883488]
[1646681880586,0.0447,37391.0,37387.0,0.350064]
[1646681880788,0.0447,37391.0,37387.0,0.58527333]
[1646681881189,3.96322373,37400.0,37387.0,0.58527333]
[1646681881190,3.96322373,37400.0,37387.0,0.71970333]
[1646681881389,3.96322373,37400.0,37389.0,0.350036]
[1646681881648,3.96322373,37400.0,37391.0,0.350015]
[1646681881850,3.96322373,37400.0,37392.0,0.01336]
[1646681882046,3.96322373,37400.0,37387.0,0.23520933]
[1646681882250,0.066888,37399.0,37385.0,0.650075]
[1646681882447,3.96322373,37400.0,37386.0,0.3]
[1646681882750,3.96322373,37400.0,37387.0,1.3489605]
[1646681882751,3.58536373,37400.0,37387.0,1.3489605]
[1646681882948,3.23536373,37400.0,37389.0,0.350036]
[1646681883145,3.23536373,37400.0,37396.0,0.349963]
[1646681883353,3.23536373,37400.0,37397.0,0.0447]
[1646681883547,0.00012931,37410.0,37397.0,0.0447]
[1646681883548,0.00012931,37410.0,37399.0,1.65]
[1646681883750,0.00012931,37410.0,37408.0,0.02537]
[1646681883949,0.01,37419.0,37410.0,1.65]
[1646681884150,0.01336,37431.0,37411.0,1.42890355]
[1646681884351,0.01336,37433.0,37417.0,0.066818]
[1646681884548,0.33644902,37442.0,37417.0,0.066818]
[1646681884549,0.02629,37438.0,37423.0,0.02381]
[1646681884746,0.32629,37438.0,37423.0,0.08084]
[1646681884948,0.26823562,37437.0,37424.0,0.02629]
[1646681885150,0.33644902,37442.0,37425.0,0.07099]
[1646681885398,0.34979902,37447.0,37431.0,0.066792]
[1646681885598,0.33644902,37447.0,37432.0,0.07099]
[1646681885908,0.34144902,37449.0,37435.0,0.20949786]
[1646681886096,0.20925381,37442.0,37432.0,0.03310316]
[1646681886501,0.54570283,37442.0,37432.0,0.03310316]
[1646681887099,0.01335,37447.0,37435.0,1.65]
[1646681887301,0.005,37449.0,37436.0,2.7936025]
[1646681887500,0.7962,37463.0,37436.0,2.7936025]
[1646681887501,0.3,37463.0,37437.0,2.6489025]
[1646681887699,0.5467,37470.0,37441.0,0.06676]
[1646681887899,0.01334,37468.0,37442.0,0.35804]
[1646681888100,0.30748384,37461.0,37450.0,0.27679425]
[1646681888297,0.066767,37470.0,37451.0,0.3]
[1646681888507,2.74316799,37471.0,37452.0,0.01333]
[1646681888699,0.01333,37478.0,37453.0,1.1103375]
[1646681888902,0.2499999,37487.0,37453.0,1.1103375]
[1646681888903,0.01334,37486.0,37467.0,0.05332974]
[1646681889144,0.01334,37486.0,37468.0,0.0447]
[1646681889442,0.26564255,37477.0,37468.0,0.0447]
[1646681889643,0.708287,37476.0,37468.0,0.0447]
[1646681889842,0.408287,37465.0,37447.0,0.291937]
[1646681890044,0.68848443,37466.0,37460.0,0.0447]
[1646681890045,0.3,37464.0,37460.0,0.0447]
[1646681890239,0.25172072,37462.0,37460.0,0.0447]
[1646681890641,0.43754357,37466.0,37460.0,0.0447]
[1646681890844,0.43754357,37466.0,37451.0,0.26732584]
[1646681890845,0.24474063,37461.0,37451.0,0.0447]
[1646681891042,0.00012857,37464.0,37451.0,0.0447]
[1646681891238,0.6,37460.0,37450.0,0.01333]
[1646681891441,0.708287,37459.0,37451.0,0.0447]
[1646681891647,0.708287,37459.0,37444.0,0.05]
[1646681891648,0.408287,37459.0,37444.0,0.05]
[1646681891841,0.408287,37457.0,37443.0,0.26455551]
[1646681892043,0.25009299,37449.0,37443.0,0.26455551]
[1646681892241,0.066786,37458.0,37443.0,0.26455551]
[1646681892540,0.0001297,37459.0,37442.0,0.01333]
[1646681892541,0.13352241,37452.0,37442.0,0.01333]
[1646681892813,0.408287,37451.0,37442.0,0.01333]
[1646681893011,0.408287,37451.0,37436.0,0.00131818]
[1646681893511,0.18371901,37452.0,37436.0,0.00131818]
[1646681893512,0.28920223,37441.0,37436.0,0.00131818]
[1646681893715,0.408287,37440.0,37436.0,0.00131818]
[1646681893915,0.28920223,37441.0,37436.0,0.00131818]
[1646681894109,0.066803,37443.0,37436.0,0.00131818]
[1646681894313,0.00012969,37441.0,37436.0,0.00131818]
[1646681894510,0.00012969,37441.0,37436.0,0.06740818]
[1646681895111,0.15962463,37442.0,37436.0,0.06740818]
[1646681895112,0.30474798,37442.0,37436.0,0.06740818]
[1646681895511,0.00012871,37441.0,37436.0,0.00131818]
[1646681895710,0.29487669,37442.0,37436.0,0.00131818]
[1646681896109,0.50995484,37442.0,37436.0,0.00131818]
[1646681896316,0.408287,37440.0,37436.0,0.00131818]
[1646681896546,0.3,37439.0,37436.0,0.00131818]
[1646681896742,0.408287,37434.0,37431.0,0.011]
[1646681897141,0.408287,37432.0,37431.0,0.011]
[1646681897344,0.23334765,37433.0,37431.0,0.011]
[1646681897741,0.16652365,37433.0,37431.0,0.011]
[1646681898043,0.01394214,37444.0,37431.0,0.011]
[1646681898044,0.066814,37442.0,37432.0,1.45]
[1646681898245,0.200459,37445.0,37433.0,0.3]
[1646681898445,0.09990978,37449.0,37434.0,0.02629]
[1646681898643,0.1998,37446.0,37434.0,0.02629]
[1646681898847,0.1998,37446.0,37445.0,0.21907675]
[1646681899045,0.1998,37446.0,37445.0,0.31314675]
[1646681899442,0.3,37457.0,37445.0,0.41314675]
[1646681899646,0.133569,37457.0,37445.0,0.41314675]
[1646681899843,0.3,37456.0,37445.0,0.41314675]
[1646681900044,0.21593677,37451.0,37445.0,0.41314675]
[1646681900298,0.21593677,37451.0,37438.0,0.18774917]
[1646681900299,0.21593677,37451.0,37438.0,0.1]
[1646681900497,0.21593677,37451.0,37436.0,0.183564]
[1646681900498,0.21593677,37451.0,37437.0,0.1]
[1646681900798,0.00012861,37453.0,37441.0,0.06352758]
[1646681900996,0.00012861,37453.0,37442.0,0.3447]
[1646681901191,0.25197827,37461.0,37447.0,0.23576375]
[1646681901399,0.200355,37465.0,37449.0,0.02629]
[1646681901595,0.200355,37465.0,37449.0,0.11684]
[1646681901797,0.21559695,37452.0,37449.0,0.09055]
[1646681901993,0.02629,37463.0,37447.0,0.0447]
[1646681901994,0.133561,37460.0,37447.0,0.0447]
[1646681902594,0.3,37464.0,37450.0,0.093055]
[1646681902795,0.43754357,37466.0,37450.0,0.093055]
[1646681902796,0.00012861,37452.0,37450.0,0.093055]
[1646681902992,0.00012861,37452.0,37450.0,0.066765]
[1646681903593,0.066771,37461.0,37450.0,0.066765]
[1646681903795,5.19026469,37450.0,37445.0,0.18723]
[1646681904044,4.78978469,37450.0,37446.0,0.13657]
[1646681904238,3.79008469,37450.0,37447.0,1.40807361]
[1646681904438,3.20315669,37450.0,37449.0,0.962707]
[1646681904639,2.20365669,37450.0,37449.0,0.204507]
[1646681904940,0.43754357,37466.0,37450.0,1.67629]
[1646681905138,0.43754357,37466.0,37452.0,0.02629]
[1646681905340,0.43754357,37466.0,37463.0,0.09516]
[1646681905540,0.02316598,37461.0,37457.0,0.0447]
[1646681905739,0.26210437,37459.0,37458.0,0.0447]
[1646681905941,0.02316598,37461.0,37458.0,0.0447]
[1646681906440,0.20364157,37452.0,37451.0,0.066764]
[1646681906745,2.058287,37460.0,37439.0,0.200298]
[1646681906746,0.32629,37459.0,37439.0,0.200298]
[1646681906943,0.00104135,37458.0,37448.0,0.00143992]
[1646681907140,0.31143266,37449.0,37448.0,0.00143992]
[1646681908591,0.30361755,37441.0,37440.0,0.06322392]
[1646681909196,0.06175975,37450.0,37440.0,0.06322392]
[1646681909197,0.00012273,37450.0,37440.0,0.06322392]
[1646681909402,0.19867894,37450.0,37443.0,0.28984935]
[1646681909597,0.19855621,37450.0,37445.0,0.066772]
[1646681909796,0.36677358,37459.0,37445.0,0.066772]
[1646681909993,0.00012273,37447.0,37445.0,0.066772]
[1646681910198,0.35474049,37446.0,37439.0,0.133555]
[1646681910394,0.28943404,37446.0,37439.0,0.133555]
[1646681910894,0.16279421,37445.0,37439.0,0.133555]
[1646681911095,0.00011916,37444.0,37439.0,0.133555]
[1646681911759,3.51134084,37466.0,37440.0,1.1198925]
[1646681911961,3.51134084,37466.0,37447.0,0.02629]
[1646681911962,0.3,37465.0,37447.0,0.02629]
[1646681912158,0.3,37465.0,37446.0,0.133509]
[1646681912360,0.25082537,37449.0,37446.0,0.133509]
[1646681912766,0.06067058,37448.0,37440.0,0.05]
[1646681912959,0.06067058,37448.0,37431.0,0.011]
[1646681912960,0.03667158,37448.0,37431.0,0.061]
[1646681913159,0.434577,37446.0,37439.0,0.15]
[1646681913357,0.408287,37445.0,37440.0,0.0999]
[1646681913557,0.20695181,37444.0,37440.0,0.0999]
[1646681913757,0.20695181,37444.0,37439.0,0.0034]
[1646681913758,1.73763119,37441.0,37439.0,0.0034]
[1646681913959,1.6484,37441.0,37439.0,0.0034]
[1646681914569,1.715217,37441.0,37439.0,0.0034]
[1646681914760,1.67629,37439.0,37431.0,0.061]
[1646681914958,1.67629,37439.0,37431.0,0.011]
[1646681914959,0.09310503,37438.0,37431.0,0.011]
[1646681915399,0.14249943,37438.0,37431.0,0.011]
[1646681915601,0.02629,37436.0,37431.0,0.011]
[1646681915801,1.67629,37431.0,37412.0,0.001]
[1646681916003,0.02629,37428.0,37417.0,0.133641]
[1646681916201,0.06682813,37426.0,37417.0,0.133641]
[1646681916404,0.06682813,37426.0,37417.0,0.123641]
[1646681916602,0.06682813,37426.0,37419.0,0.26197301]
[1646681916802,0.06182813,37426.0,37420.0,0.066823]
[1646681917003,0.05,37438.0,37420.0,0.066823]
[1646681917004,0.433622,37440.0,37420.0,0.066823]
[1646681917206,0.433622,37440.0,37421.0,0.3]
[1646681917207,0.05520458,37432.0,37421.0,0.3]
[1646681917401,0.11335,37439.0,37424.0,0.12362]
[1646681917600,0.06680647,37435.0,37424.0,0.12362]
[1646681917800,0.18555456,37430.0,37424.0,0.12362]
[1646681918202,0.18555456,37430.0,37419.0,0.1]
[1646681918601,0.18173795,37430.0,37419.0,0.1]
[1646681918803,0.25228197,37426.0,37419.0,0.1]
[1646681919050,0.25228197,37426.0,37423.0,0.21088342]
[1646681919445,0.25228197,37426.0,37423.0,0.27770042]
[1646681919647,0.20044996,37431.0,37423.0,0.27770042]
[1646681919851,0.147007,37439.0,37423.0,0.27770042]
[1646681919852,0.01336,37439.0,37423.0,0.27770042]
[1646681920049,0.00013111,37446.0,37424.0,2.00858891]
[1646681920050,0.06680454,37436.0,37424.0,2.00858891]
[1646681920248,0.01335,37445.0,37425.0,0.1]
[1646681920448,0.20687796,37438.0,37426.0,0.51698573]
[1646681920749,0.05764677,37438.0,37433.0,0.22677119]
[1646681920949,0.08393677,37438.0,37426.0,0.1336]
[1646681921149,0.55515875,37422.0,37421.0,0.1]
[1646681921351,5.875e-05,37422.0,37421.0,0.1]
[1646681921549,0.066812,37436.0,37422.0,0.02629]
[1646681921748,0.19453386,37437.0,37425.0,0.02629]
[1646681921950,0.30465612,37433.0,37432.0,0.33988889]
[1646681922148,0.30465612,37433.0,37432.0,0.066801]
[1646681922989,0.48288731,37433.0,37427.0,0.133605]
[1646681923192,0.48288731,37433.0,37425.0,0.0999]
[1646681923193,0.02629,37432.0,37425.0,0.0999]
[1646681923395,0.59971531,37433.0,37425.0,0.0999]
[1646681923588,0.59971531,37433.0,37422.0,0.01697182]
[1646681923987,0.02629,37431.0,37422.0,0.01697182]
[1646681924187,0.32602763,37423.0,37422.0,0.01697182]
[1646681924389,0.06682946,37425.0,37422.0,0.01697182]
[1646681925396,0.133648,37431.0,37424.0,0.26084209]
[1646681925598,0.1998,37438.0,37424.0,0.02629]
[1646681925599,0.066806,37436.0,37424.0,0.02629]
[1646681925794,0.3,37441.0,37423.0,0.066814]
[1646681925795,0.2006016,37446.0,37423.0,0.02629]
[1646681925987,0.19838885,37441.0,37427.0,0.25419618]
[1646681926187,0.19838885,37441.0,37432.0,0.24929261]
[1646681926388,0.22467885,37441.0,37428.0,0.3]
[1646681926645,0.22467885,37441.0,37422.0,0.64330082]
[1646681926646,0.23643594,37434.0,37432.0,0.02686111]
[1646681926848,0.13360302,37437.0,37432.0,0.02686111]
[1646681927047,0.133616,37439.0,37432.0,0.02686111]
[1646681927048,0.02889537,37439.0,37432.0,0.02686111]
[1646681927251,0.20060164,37446.0,37434.0,0.8029]
[1646681927252,0.00013064,37446.0,37434.0,0.8029]
[1646681927449,0.00013064,37446.0,37433.0,0.27593984]
[1646681927450,0.00013064,37446.0,37435.0,0.3447]
[1646681927652,0.02316598,37461.0,37437.0,0.226592]
[1646681927852,0.28537342,37456.0,37442.0,0.30532869]
[1646681928049,0.06819934,37454.0,37446.0,0.066771]
[1646681928249,0.09448934,37454.0,37446.0,0.066771]
[1646681928452,0.09448934,37454.0,37445.0,0.133541]
[1646681928648,0.09448934,37454.0,37438.0,0.0447]
[1646681928850,0.17629,37452.0,37432.0,0.02686111]
[1646681929050,0.07463622,37435.0,37432.0,0.02686111]
[1646681929651,0.37463622,37435.0,37432.0,0.02686111]
[1646681929853,0.21773669,37435.0,37432.0,0.02686111]
[1646681930320,0.50767439,37434.0,37432.0,0.02686111]
[1646681930511,0.734577,37433.0,37432.0,0.02686111]
[1646681930716,0.734577,37433.0,37432.0,0.01110954]
[1646681931111,0.784577,37433.0,37432.0,0.01110954]
[1646681931312,0.37629,37433.0,37432.0,0.01110954]
[1646681931711,0.37629,37433.0,37422.0,0.05]
[1646681931915,0.02629,37430.0,37422.0,0.05]
[1646681932115,0.02629,37430.0,37412.0,0.051]
[1646681932116,0.32434845,37430.0,37412.0,0.051]
[1646681932315,0.37236813,37430.0,37412.0,0.051]
[1646681932514,0.07236813,37430.0,37414.0,0.133667]
[1646681932716,0.30831386,37427.0,37414.0,0.133667]
[1646681932919,0.37513583,37427.0,37414.0,0.44543794]
[1646681933115,0.37513583,37427.0,37417.0,0.066835]
[1646681933116,0.05816033,37425.0,37417.0,0.066835]
[1646681933714,0.05816033,37425.0,37419.0,0.20835384]
[1646681933914,0.05816033,37425.0,37424.0,0.63456248]
[1646681934142,0.30831386,37427.0,37424.0,0.63456248]
[1646681934341,0.06682567,37425.0,37424.0,0.63456248]
[1646681934539,0.06682567,37425.0,37424.0,0.62456248]
[1646681934941,0.06682567,37425.0,37424.0,0.61456248]
[1646681935341,0.06682567,37425.0,37424.0,0.61956248]
[1646681936742,0.06682567,37425.0,37424.0,1.29447529]
[1646681936942,0.22898379,37431.0,37424.0,1.29447529]
[1646681936943,0.133631,37441.0,37424.0,1.29447529]
[1646681937145,0.133631,37441.0,37425.0,0.3]
[1646681937146,0.03965,37440.0,37425.0,0.3]
[1646681937344,0.32402915,37437.0,37424.0,1.29447529]
[1646681937544,0.32402915,37437.0,37426.0,0.133615]
[1646681937990,0.45764654,37437.0,37429.0,0.27555161]
[1646681938389,0.50764654,37437.0,37430.0,2.25298815]
[1646681938587,0.50764654,37437.0,37428.0,0.06681]
[1646681938787,0.00087749,37429.0,37423.0,0.133628]
[1646681939189,0.00087749,37429.0,37425.0,0.366811]
[1646681939588,0.00087749,37429.0,37425.0,0.066811]
[1646681939790,0.00087749,37429.0,37425.0,0.366811]
[1646681940193,0.00087749,37429.0,37427.0,0.21457999]
[1646681940694,0.00087749,37429.0,37424.0,1.29447529]
[1646681940890,0.06172805,37428.0,37424.0,1.29447529]
[1646681941092,0.00087749,37429.0,37424.0,1.29447529]
[1646681941563,0.28418742,37426.0,37424.0,1.52809557]
[1646681941753,0.28418742,37426.0,37424.0,1.29447529]
[1646681942153,0.06769466,37429.0,37424.0,1.29447529]
[1646681942354,0.00087749,37429.0,37424.0,1.29447529]
[1646681942960,0.33405451,37442.0,37425.0,0.3]
[1646681942961,0.20043951,37442.0,37425.0,0.3]
[1646681943259,0.19993112,37446.0,37433.0,0.28890315]
[1646681943260,0.02629,37444.0,37433.0,0.28890315]
[1646681943657,0.13358158,37443.0,37433.0,0.28890315]
[1646681943957,0.13358158,37443.0,37434.0,0.133581]
[1646681944356,0.06678858,37443.0,37434.0,0.433581]
[1646681944555,0.06678858,37443.0,37439.0,0.215142]
[1646681944756,0.06678858,37443.0,37436.0,0.066791]
[1646681944955,0.18357922,37446.0,37436.0,0.066791]
[1646681944956,0.06678658,37444.0,37436.0,0.066791]
[1646681945393,0.066791,37443.0,37436.0,0.066791]
[1646681946900,0.20372085,37452.0,37444.0,0.27080432]
[1646681947101,0.20035994,37455.0,37444.0,0.27080432]
[1646681947102,0.20035994,37455.0,37445.0,0.366776]
[1646681947296,0.00011289,37446.0,37445.0,0.066776]